fUSD/lending_fUSD_20241221
["ID","MTS","AMOUNT","RATE_DAILY","PERIOD"]
[346239535,1734797447524,-649.69,0.00021093,2]
[346239536,1734797447535,-500.0,0.00021093,2]
[346239537,1734797447545,-500.0,0.00021093,2]
[346239538,1734797447555,-500.0,0.00021093,2]
[346239539,1734797447566,-542.40550466,0.00021093,2]
[346239540,1734797447577,-500.0,0.00021093,2]
[346239541,1734797447587,-373.4089932,0.00021093,2]
[346239542,1734797447596,-636.36637687,0.00021093,2]
[346239543,1734797447605,-500.0,0.00021093,2]
[346239544,1734797447615,-500.0,0.00021093,2]
[346239545,1734797447624,-500.0,0.00021093,2]
[346239546,1734797447635,-500.0,0.00021093,2]
[346239547,1734797447645,-2143.61,0.00021093,2]
[346239548,1734797447654,-500.0,0.00021093,2]
[346239549,1734797447664,-948.2,0.00021093,2]
[346239550,1734797447674,-500.0,0.00021093,2]
[346239551,1734797447684,-500.0,0.00021093,2]
[346239552,1734797447694,-500.0,0.00021093,2]
[346239553,1734797447704,-500.0,0.00021093,2]
[346239554,1734797447718,-500.0,0.00021093,2]
[346239555,1734797447728,-500.0,0.00021093,2]
[346239556,1734797447741,-500.0,0.00021093,2]
[346239557,1734797447750,-847.43,0.00021093,2]
[346239558,1734797447760,-500.0,0.00021093,2]
[346239559,1734797447770,-500.0,0.00021093,2]
[346239560,1734797447780,-561.1,0.00021093,2]
[346239561,1734797447790,-500.0,0.00021093,2]
[346239562,1734797447799,-500.0,0.00021093,2]
[346239563,1734797447810,-868.34,0.00021093,2]
[346239564,1734797447819,-500.0,0.00021093,2]
[346239565,1734797447828,-537.67,0.00021093,2]
[346239566,1734797447838,-652.44,0.00021093,2]
[346239567,1734797447847,-500.0,0.00021093,2]
[346239568,1734797447857,-1092.18,0.00021093,2]
[346239569,1734797447866,-1395.42,0.00021093,2]
[346239570,1734797447875,-160.24,0.00021093,2]
[346239571,1734797447885,-854.91,0.00021093,2]
[346239572,1734797447895,-500.0,0.00021093,2]
[346239573,1734797447904,-1536.52,0.00021093,2]
[346239574,1734797447914,-500.0,0.00021093,2]
[346239575,1734797447924,-500.0,0.00021093,2]
[346239576,1734797447934,-500.0,0.00021093,2]
[346239577,1734797447943,-500.0,0.00021093,2]
[346239578,1734797447953,-680.52,0.00021093,2]
[346239579,1734797447965,-572.68,0.00021093,2]
[346239580,1734797447975,-500.0,0.00021093,2]
[346239581,1734797447986,-567.41,0.00021093,2]
[346239582,1734797447998,-500.0,0.00021093,2]
[346239583,1734797448008,-500.0,0.00021093,2]
[346239584,1734797448017,-500.0,0.00021093,2]
[346239585,1734797448027,-508.48,0.00021093,2]
[346239586,1734797448036,-500.0,0.00021093,2]
[346239587,1734797448046,-500.0,0.00021093,2]
[346239588,1734797448055,-500.0,0.00021093,2]
[346239589,1734797448065,-500.0,0.00021093,2]
[346239590,1734797448076,-587.62,0.00021093,2]
[346239591,1734797448086,-769.21,0.00021093,2]
[346239592,1734797448095,-1571.6,0.00021093,2]
[346239593,1734797448105,-500.0,0.00021093,2]
[346239594,1734797448115,-500.0,0.00021093,2]
[346239595,1734797448124,-500.0,0.00021093,2]
[346239596,1734797448135,-500.0,0.00021093,2]
[346239597,1734797448144,-500.0,0.00021093,2]
[346239598,1734797448155,-628.47,0.00021093,2]
[346239599,1734797448164,-509.72,0.00021093,2]
[346239600,1734797448174,-500.0,0.00021093,2]
[346239601,1734797448183,-577.09921147,0.00021093,2]
[346239602,1734797448193,-500.0,0.00021093,2]
[346239603,1734797448202,-703.8,0.00021093,2]
[346239604,1734797448214,-500.0,0.00021093,2]
[346239605,1734797448224,-643.31,0.00021093,2]
[346239606,1734797448234,-500.0,0.00021093,2]
[346239607,1734797448243,-612.01,0.00021093,2]
[346239608,1734797448253,-500.0,0.00021093,2]
[346239609,1734797448263,-500.0,0.00021093,2]
[346239610,1734797448272,-500.0,0.00021093,2]
[346239611,1734797448282,-504.2,0.00021093,2]
[346239612,1734797448292,-500.0,0.00021093,2]
[346239613,1734797448301,-377.9,0.00021093,2]
[346239614,1734797448311,-500.0,0.00021093,2]
[346239615,1734797448321,-500.0,0.00021094,2]
[346239616,1734797448332,-500.0,0.00021094,2]
[346239617,1734797448341,-452.94145253,0.00021094,2]
[346239618,1734797448351,-244.7,0.00021094,2]
[346239619,1734797448361,-505.23,0.00021094,2]
[346239620,1734797448372,-500.0,0.00021094,2]
[346239621,1734797448382,-500.0,0.00021094,2]
[346239622,1734797448391,-500.0,0.00021094,2]
[346239623,1734797448401,-500.0,0.00021094,2]
[346239624,1734797448411,-500.0,0.00021094,2]
[346239625,1734797448421,-500.0,0.00021094,2]
[346239626,1734797448431,-431.13,0.00021094,2]
[346239627,1734797448441,-500.0,0.00021094,2]
[346239628,1734797448451,-500.0,0.00021094,2]
[346239629,1734797448461,-671.17,0.00021094,2]
[346239630,1734797448471,-500.0,0.00021094,2]
[346239631,1734797448482,-500.0,0.00021094,2]
[346239632,1734797448492,-500.0,0.00021094,2]
[346239633,1734797448501,-500.0,0.00021094,2]
[346239634,1734797448511,-500.0,0.00021094,2]
[346239635,1734797448521,-546.9,0.00021094,2]
[346239636,1734797448532,-500.0,0.00021094,2]
[346239637,1734797448542,-500.0,0.00021094,2]
[346239638,1734797448552,-500.0,0.00021094,2]
[346239639,1734797448562,-500.0,0.00021094,2]
[346239640,1734797448572,-500.0,0.00021094,2]
[346239641,1734797448582,-500.0,0.00021094,2]
[346239642,1734797448592,-500.0,0.00021094,2]
[346239643,1734797448602,-500.0,0.00021094,2]
[346239644,1734797448611,-500.0,0.00021094,2]
[346239645,1734797448621,-500.0,0.00021094,2]
[346239646,1734797448631,-500.0,0.00021094,2]
[346239647,1734797448641,-500.0,0.00021094,2]
[346239648,1734797448650,-575.49,0.00021094,2]
[346239649,1734797448661,-500.0,0.00021094,2]
[346239650,1734797448671,-330.9318794,0.00021094,2]
[346239651,1734797448680,-500.0,0.00021094,2]
[346239652,1734797448690,-500.0,0.00021094,2]
[346239653,1734797448700,-500.0,0.00021094,2]
[346239654,1734797448711,-500.0,0.00021094,2]
[346239655,1734797448721,-380.4,0.00021094,2]
[346239656,1734797448731,-500.0,0.00021094,2]
[346239657,1734797448741,-515.87,0.00021094,2]
[346239658,1734797448751,-500.0,0.00021094,2]
[346239659,1734797448761,-611.52,0.00021094,2]
[346239660,1734797448771,-500.0,0.00021094,2]
[346239661,1734797448781,-500.0,0.00021094,2]
[346239662,1734797448792,-500.0,0.00021094,2]
[346239663,1734797448801,-500.0,0.00021094,2]
[346239664,1734797448811,-220.78,0.00021094,2]
[346239665,1734797448822,-500.0,0.00021094,2]
[346239666,1734797448831,-500.0,0.00021094,2]
[346239667,1734797448841,-500.0,0.00021094,2]
[346239668,1734797448851,-500.0,0.00021094,2]
[346239669,1734797448861,-500.0,0.00021094,2]
[346239670,1734797448871,-500.0,0.00021094,2]
[346239671,1734797448881,-314.07,0.00021094,2]
[346239672,1734797448891,-587.08,0.00021094,2]
[346239673,1734797448901,-500.0,0.00021094,2]
[346239674,1734797448911,-500.0,0.00021094,2]
[346239675,1734797448921,-1251.85,0.00021094,3]
[346239676,1734797448931,-500.0,0.00021094,2]
[346239677,1734797448941,-500.0,0.00021094,2]
[346239678,1734797448951,-500.0,0.00021094,2]
[346239679,1734797448961,-500.0,0.00021094,2]
[346239680,1734797448972,-500.0,0.00021094,2]
[346239681,1734797448984,-259.63478864,0.00021094,2]
[346239682,1734797448995,-500.0,0.00021094,2]
[346239683,1734797449005,-500.0,0.00021094,2]
[346239684,1734797449015,-811.2,0.00021094,2]
[346239685,1734797449026,-500.0,0.00021094,2]
[346239686,1734797449036,-500.0,0.00021094,2]
[346239687,1734797449046,-500.0,0.00021094,2]
[346239688,1734797449057,-500.0,0.00021094,2]
[346239689,1734797449067,-500.0,0.00021094,2]
[346239690,1734797449077,-500.0,0.00021094,2]
[346239691,1734797449087,-150.0,0.00021105,4]
[346239692,1734797449098,-500.0,0.00021121,2]
[346239693,1734797449107,-1000.0,0.00021121,2]
[346239694,1734797449117,-251.8545375,0.00021121,2]
[346239695,1734797449127,-870.78157621,0.00021121,2]
[346239696,1734797449137,-195.84593955,0.00021123,2]
[346239697,1734797449147,-413.33874367,0.0002115,2]
[346239698,1734797449158,-31943.0,0.00021151,2]
[346239699,1734797449167,-150.0,0.00021153,4]
[346239700,1734797449178,-7500.0,0.00021167,2]
[346239701,1734797449187,-61351.15423595,0.00021168,2]
[346239702,1734797449197,-201.32771681,0.00021168,2]
[346239703,1734797449207,-1059.0,0.00021168,2]
[346239704,1734797449223,-680.0,0.00021168,2]
[346239705,1734797449240,-500.0,0.00021168,2]
[346239706,1734797449250,-982.76,0.00021168,2]
[346239707,1734797449260,-2265.28640133,0.00021188,2]
[346239708,1734797449271,-212.4076775,0.00021188,2]
[346239709,1734797449283,-151.0,0.000212,2]
[346239710,1734797449294,-228.861318,0.000212,2]
[346239711,1734797449305,-151.0,0.000212,2]
[346239712,1734797449316,-151.0,0.000212,2]
[346239713,1734797449326,-151.0,0.000212,2]
[346239714,1734797449336,-150.0,0.00021201,4]
[346239715,1734797449347,-195.84593955,0.00021205,2]
[346239716,1734797449358,-150.0,0.00021208,4]
[346239717,1734797449368,-150.0,0.00021208,4]
[346239718,1734797449378,-150.0,0.00021249,4]
[346239719,1734797449389,-2047.63676239,0.00021269,2]
[346239720,1734797449399,-8000.0,0.00021284,8]
[346239721,1734797449409,-2265.28640133,0.00021294,2]
[346239722,1734797449420,-212.4076775,0.00021294,2]
[346239723,1734797449583,-150.0,0.00021297,4]
[346239724,1734797449594,-1008.44,0.00021321,2]
[346239725,1734797449604,-200.0,0.00021328,2]
[346239726,1734797449614,-195.05,0.00021332,2]
[346239727,1734797449624,-151.0,0.00021335,2]
[346239728,1734797449634,-150.0,0.00021345,4]
[346239729,1734797449643,-206.0,0.0002135,2]
[346239730,1734797449653,-210.0,0.0002135,2]
[346239731,1734797449662,-500.0,0.00021366,2]
[346239732,1734797449672,-500.0,0.00021366,2]
[346239733,1734797449681,-500.0,0.00021366,2]
[346239734,1734797449691,-500.0,0.00021366,2]
[346239735,1734797449700,-500.0,0.00021366,2]
[346239736,1734797449718,-500.0,0.00021366,2]
[346239737,1734797449727,-513.25079255,0.00021366,2]
[346239738,1734797449737,-500.0,0.00021366,2]
[346239739,1734797449747,-500.0,0.00021366,2]
[346239740,1734797449756,-500.0,0.00021366,2]
[346239741,1734797449766,-310.95635117,0.00021366,2]
[346239742,1734797449776,-500.0,0.00021366,2]
[346239743,1734797449785,-500.0,0.00021366,2]
[346239744,1734797449795,-500.0,0.00021366,2]
[346239745,1734797449804,-500.0,0.00021366,2]
[346239746,1734797449813,-500.0,0.00021366,2]
[346239747,1734797449823,-500.0,0.00021366,2]
[346239748,1734797449832,-500.0,0.00021366,2]
[346239749,1734797449841,-781.596085,0.00021366,2]
[346239750,1734797449851,-570.29,0.00021366,2]
[346239751,1734797449860,-500.0,0.00021366,2]
[346239752,1734797449869,-500.0,0.00021366,2]
[346239753,1734797449879,-798.14,0.00021366,2]
[346239754,1734797449888,-663.4,0.00021366,2]
[346239755,1734797449898,-328.233439,0.00021366,2]
[346239756,1734797449906,-500.0,0.00021366,2]
[346239757,1734797449916,-1094.64,0.00021366,2]
[346239758,1734797449926,-609.22,0.00021366,2]
[346239759,1734797449936,-500.0,0.00021366,2]
[346239760,1734797449945,-798.58,0.00021366,2]
[346239761,1734797449955,-928.02,0.00021366,2]
[346239762,1734797449969,-500.0,0.00021366,2]
[346239763,1734797449978,-500.0,0.00021366,2]
[346239764,1734797449992,-500.0,0.00021366,2]
[346239765,1734797450001,-1013.69,0.00021366,2]
[346239766,1734797450011,-937.25,0.00021366,2]
[346239767,1734797450022,-500.0,0.00021366,2]
[346239768,1734797450031,-569.29,0.00021366,2]
[346239769,1734797450042,-500.0,0.00021366,2]
[346239770,1734797450051,-1474.06,0.00021366,2]
[346239771,1734797450061,-1007.36,0.00021366,2]
[346239772,1734797450071,-2298.5,0.00021366,2]
[346239773,1734797450082,-1847.5,0.00021366,2]
[346239774,1734797450092,-3589.33,0.00021366,2]
[346239775,1734797450102,-821.09,0.00021366,2]
[346239776,1734797450112,-2033.68,0.00021366,2]
[346239777,1734797450121,-1181.71,0.00021366,2]
[346239778,1734797450131,-1769.49,0.00021366,2]
[346239779,1734797450141,-1153.87,0.00021366,2]
[346239780,1734797450151,-1408.35,0.00021366,2]
[346239781,1734797450161,-500.0,0.00021366,2]
[346239782,1734797450170,-1018.32,0.00021366,2]
[346239783,1734797450179,-553.15,0.00021366,2]
[346239784,1734797450188,-670.97,0.00021366,2]
[346239785,1734797450198,-1533.53,0.00021366,2]
[346239786,1734797450207,-500.0,0.00021366,2]
[346239787,1734797450219,-1054.93,0.00021366,2]
[346239788,1734797450229,-500.0,0.00021366,2]
[346239789,1734797450238,-2879.06,0.00021366,2]
[346239790,1734797450248,-511.4,0.00021366,2]
[346239791,1734797450258,-2569.06,0.00021366,2]
[346239792,1734797450268,-2201.9,0.00021366,2]
[346239793,1734797450278,-500.0,0.00021366,2]
[346239794,1734797450287,-500.0,0.00021366,2]
[346239795,1734797450297,-500.0,0.00021366,2]
[346239796,1734797450307,-500.0,0.00021366,2]
[346239797,1734797450316,-669.33,0.00021366,2]
[346239798,1734797450326,-500.0,0.00021366,2]
[346239799,1734797450336,-500.0,0.00021366,2]
[346239800,1734797450345,-500.0,0.00021366,2]
[346239801,1734797450354,-500.0,0.00021366,2]
[346239802,1734797450364,-500.0,0.00021366,2]
[346239803,1734797450373,-500.0,0.00021366,2]
[346239804,1734797450383,-500.0,0.00021366,2]
[346239805,1734797450392,-918.29,0.00021366,2]
[346239806,1734797450402,-746.85,0.00021366,2]
[346239807,1734797450411,-500.0,0.00021366,2]
[346239808,1734797450420,-500.0,0.00021367,2]
[346239809,1734797450429,-500.0,0.00021367,2]
[346239810,1734797450439,-514.93,0.00021367,2]
[346239811,1734797450448,-459.9,0.00021367,2]
[346239812,1734797450458,-500.0,0.00021367,2]
[346239813,1734797450467,-500.0,0.00021367,2]
[346239814,1734797450477,-500.0,0.00021367,2]
[346239815,1734797450486,-500.0,0.00021367,2]
[346239816,1734797450496,-500.0,0.00021367,2]
[346239817,1734797450505,-500.0,0.00021367,2]
[346239818,1734797450515,-500.0,0.00021367,2]
[346239819,1734797450524,-500.0,0.00021367,2]
[346239820,1734797450534,-500.0,0.00021367,2]
[346239821,1734797450544,-500.0,0.00021367,2]
[346239822,1734797450553,-500.0,0.00021367,2]
[346239823,1734797450563,-500.0,0.00021367,2]
[346239824,1734797450572,-616.72386704,0.00021367,2]
[346239825,1734797450581,-500.0,0.00021367,2]
[346239826,1734797450590,-500.0,0.00021367,2]
[346239827,1734797450600,-500.0,0.00021367,2]
[346239828,1734797450610,-323.82,0.00021367,2]
[346239829,1734797450620,-500.0,0.00021367,2]
[346239830,1734797450629,-500.0,0.00021367,2]
[346239831,1734797450638,-500.0,0.00021367,2]
[346239832,1734797450647,-504.43172447,0.00021367,2]
[346239833,1734797450657,-545.19,0.00021367,2]
[346239834,1734797450666,-500.0,0.00021367,2]
[346239835,1734797450675,-649.69,0.00021367,2]
[346239836,1734797450684,-227.74176005,0.00021367,2]
[346239837,1734797450694,-500.0,0.00021367,2]
[346239838,1734797450703,-500.0,0.00021367,2]
[346239839,1734797450715,-500.0,0.00021367,2]
[346239840,1734797450724,-255.66,0.00021367,2]
[346239841,1734797450733,-500.0,0.00021367,2]
[346239842,1734797450742,-500.0,0.00021367,2]
[346239843,1734797450752,-500.0,0.00021367,2]
[346239844,1734797450761,-2143.61,0.00021367,2]
[346239845,1734797450771,-500.0,0.00021367,2]
[346239846,1734797450781,-948.2,0.00021367,2]
[346239847,1734797450791,-500.0,0.00021367,2]
[346239848,1734797450800,-500.0,0.00021367,2]
[346239849,1734797450810,-500.0,0.00021367,2]
[346239850,1734797450820,-500.0,0.00021367,2]
[346239851,1734797450829,-500.0,0.00021367,2]
[346239852,1734797450838,-500.0,0.00021367,2]
[346239853,1734797450848,-500.0,0.00021367,2]
[346239854,1734797450857,-847.43,0.00021367,2]
[346239855,1734797450866,-500.0,0.00021367,2]
[346239856,1734797450876,-500.0,0.00021367,2]
[346239857,1734797450886,-561.1,0.00021367,2]
[346239858,1734797450895,-500.0,0.00021367,2]
[346239859,1734797450904,-868.34,0.00021367,2]
[346239860,1734797450914,-519.58342556,0.00021367,2]
[346239861,1734797450923,-537.67,0.00021367,2]
[346239862,1734797450933,-652.44,0.00021367,2]
[346239863,1734797450942,-500.0,0.00021367,2]
[346239864,1734797450952,-1092.18,0.00021367,2]
[346239865,1734797450963,-1395.42,0.00021367,2]
[346239866,1734797450972,-854.91,0.00021367,2]
[346239867,1734797450989,-1536.52,0.00021367,2]
[346239868,1734797450999,-500.0,0.00021367,2]
[346239869,1734797451008,-500.0,0.00021367,2]
[346239870,1734797451018,-500.0,0.00021367,2]
[346239871,1734797451027,-500.0,0.00021367,2]
[346239872,1734797451036,-680.52,0.00021367,2]
[346239873,1734797451046,-572.68,0.00021367,2]
[346239874,1734797451055,-500.0,0.00021367,2]
[346239875,1734797451064,-567.41,0.00021367,2]
[346239876,1734797451074,-500.0,0.00021367,2]
[346239877,1734797451086,-500.0,0.00021367,2]
[346239878,1734797451095,-500.0,0.00021367,2]
[346239879,1734797451105,-508.48,0.00021367,2]
[346239880,1734797451114,-205.40454907,0.00021367,2]
[346239881,1734797451123,-500.0,0.00021367,2]
[346239882,1734797451132,-500.0,0.00021367,2]
[346239883,1734797451142,-500.0,0.00021367,2]
[346239884,1734797451151,-587.62,0.00021367,2]
[346239885,1734797451160,-769.21,0.00021367,2]
[346239886,1734797451170,-1571.6,0.00021367,2]
[346239887,1734797451179,-500.0,0.00021367,2]
[346239888,1734797451188,-500.0,0.00021367,2]
[346239889,1734797451197,-500.0,0.00021367,2]
[346239890,1734797451206,-500.0,0.00021367,2]
[346239891,1734797451220,-500.0,0.00021367,2]
[346239892,1734797451229,-628.47,0.00021367,2]
[346239893,1734797451238,-509.72,0.00021367,2]
[346239894,1734797451248,-500.0,0.00021367,2]
[346239895,1734797451257,-500.0,0.00021367,2]
[346239896,1734797451267,-703.8,0.00021367,2]
[346239897,1734797451276,-245.7738968,0.00021367,2]
[346239898,1734797451286,-643.31,0.00021367,2]
[346239899,1734797451295,-500.0,0.00021367,2]
[346239900,1734797451305,-612.01,0.00021367,2]
[346239901,1734797451315,-500.0,0.00021367,2]
[346239902,1734797451325,-500.0,0.00021367,2]
[346239903,1734797451334,-500.0,0.00021367,2]
[346239904,1734797451343,-504.2,0.00021367,2]
[346239905,1734797451352,-287.5130862,0.00021367,2]
[346239906,1734797451362,-500.0,0.00021367,2]
[346239907,1734797451371,-500.0,0.00021368,2]
[346239908,1734797451380,-500.0,0.00021368,2]
[346239909,1734797451390,-376.05,0.00021368,2]
[346239910,1734797451399,-500.0,0.00021368,2]
[346239911,1734797451408,-500.0,0.00021368,2]
[346239912,1734797451417,-500.0,0.00021368,2]
[346239913,1734797451426,-500.0,0.00021368,2]
[346239914,1734797451435,-671.17,0.00021368,2]
[346239915,1734797451444,-500.0,0.00021368,2]
[346239916,1734797451454,-500.0,0.00021368,2]
[346239917,1734797451464,-474.93232723,0.00021368,2]
[346239918,1734797451473,-500.0,0.00021368,2]
[346239919,1734797451482,-500.0,0.00021368,2]
[346239920,1734797451491,-546.9,0.00021368,2]
[346239921,1734797451500,-500.0,0.00021368,2]
[346239922,1734797451510,-500.0,0.00021368,2]
[346239923,1734797451519,-500.0,0.00021368,2]
[346239924,1734797451528,-500.0,0.00021368,2]
[346239925,1734797451539,-500.0,0.00021368,2]
[346239926,1734797451549,-500.0,0.00021368,2]
[346239927,1734797451558,-500.0,0.00021368,2]
[346239928,1734797451567,-500.0,0.00021368,2]
[346239929,1734797451575,-640.66,0.00021368,2]
[346239930,1734797451585,-500.0,0.00021368,2]
[346239931,1734797451594,-575.49,0.00021368,2]
[346239932,1734797451603,-500.0,0.00021368,2]
[346239933,1734797451612,-330.46452647,0.00021368,2]
[346239934,1734797451623,-500.0,0.00021368,2]
[346239935,1734797451632,-500.0,0.00021368,2]
[346239936,1734797451641,-500.0,0.00021368,2]
[346239937,1734797451651,-500.0,0.00021368,2]
[346239938,1734797451659,-500.0,0.00021368,2]
[346239939,1734797451669,-611.52,0.00021368,2]
[346239940,1734797451678,-500.0,0.00021368,2]
[346239941,1734797451687,-500.0,0.00021368,2]
[346239942,1734797451697,-500.0,0.00021368,2]
[346239943,1734797451706,-500.0,0.00021368,2]
[346239944,1734797451716,-500.0,0.00021368,2]
[346239945,1734797451726,-550.35,0.00021368,2]
[346239946,1734797451735,-500.0,0.00021368,2]
[346239947,1734797451744,-500.0,0.00021368,2]
[346239948,1734797451753,-500.0,0.00021368,2]
[346239949,1734797451762,-244.62870424,0.00021368,2]
[346239950,1734797451772,-587.08,0.00021368,2]
[346239951,1734797451781,-500.0,0.00021368,2]
[346239952,1734797451791,-374.68626545,0.00021368,2]
[346239953,1734797451801,-1251.85,0.00021368,3]
[346239954,1734797451810,-500.0,0.00021368,2]
[346239955,1734797451819,-500.0,0.00021368,2]
[346239956,1734797451829,-500.0,0.00021368,2]
[346239957,1734797451838,-500.0,0.00021368,2]
[346239958,1734797451847,-500.0,0.00021368,2]
[346239959,1734797451856,-500.0,0.00021368,2]
[346239960,1734797451866,-500.0,0.00021368,2]
[346239961,1734797451876,-811.2,0.00021368,2]
[346239962,1734797451885,-500.0,0.00021368,2]
[346239963,1734797451894,-500.0,0.00021368,2]
[346239964,1734797451904,-500.0,0.00021368,2]
[346239965,1734797451913,-500.0,0.00021368,2]
[346239966,1734797451923,-500.0,0.00021368,2]
[346239967,1734797451933,-500.0,0.00021368,2]
[346239968,1734797451943,-150.0,0.00021368,4]
[346239969,1734797451953,-150.0,0.00021368,4]
[346239970,1734797451964,-150.0,0.00021368,4]
[346239971,1734797451973,-900.0,0.00021369,2]
[346239972,1734797451984,-999.0,0.00021369,2]
[346239973,1734797451995,-150.0,0.00021392,4]
[346239974,1734797452005,-413.33874367,0.000214,2]
[346239975,1734797452014,-182.49092784,0.000214,2]
[346239976,1734797452024,-2265.28640133,0.000214,2]
[346239977,1734797452034,-212.4076775,0.000214,2]
[346239978,1734797452043,-209.48478231,0.000214,3]
[346239979,1734797452054,-3390.84524233,0.000214,2]
[346239980,1734797452065,-297.65810311,0.000214,2]
[346239981,1734797452075,-290.728592,0.000214,2]
[346239982,1734797452084,-7500.0,0.0002144,2]
[346239983,1734797452094,-150.0,0.0002144,4]
[346239984,1734797452103,-151.0,0.00021441,2]
[346239985,1734797452113,-151.0,0.00021441,2]
[346239986,1734797452122,-1059.0,0.00021442,2]
[346239987,1734797452131,-680.0,0.00021442,2]
[346239988,1734797452141,-500.0,0.00021442,2]
[346239989,1734797452150,-151.0,0.00021442,2]
[346239990,1734797452159,-982.76,0.00021442,2]
[346239991,1734797452169,-202.0,0.0002147,2]
[346239992,1734797452178,-202.0,0.0002147,2]
[346239993,1734797452188,-500.0,0.00021473,2]
[346239994,1734797452197,-501.00821156,0.00021473,2]
[346239995,1734797452207,-500.0,0.00021473,2]
[346239996,1734797452218,-2095.0,0.00021479,2]
[346239997,1734797452228,-13318.0,0.00021479,2]
[346239998,1734797452238,-150.0,0.00021488,4]
[346239999,1734797452248,-624.83009526,0.00021489,2]
[346240000,1734797452257,-624.83009526,0.0002149,2]
[346240001,1734797452267,-557.06551,0.0002149,2]
[346240002,1734797452276,-1021.36706913,0.00021499,5]
[346240003,1734797452286,-514.93,0.00021499,2]
[346240004,1734797452295,-514.93,0.00021499,2]
[346240005,1734797452305,-514.93,0.00021499,2]
[346240006,1734797452314,-514.93,0.00021499,2]
[346240007,1734797452324,-514.93,0.00021499,2]
[346240008,1734797452334,-514.93,0.00021499,2]
[346240009,1734797452343,-514.93,0.00021499,2]
[346240010,1734797452353,-514.93,0.00021499,2]
[346240011,1734797452362,-514.93,0.00021499,2]
[346240012,1734797452371,-514.93,0.00021499,2]
[346240013,1734797452380,-514.93,0.00021499,2]
[346240014,1734797452389,-514.93,0.00021499,2]
[346240015,1734797452399,-514.93,0.00021499,2]
[346240016,1734797452409,-514.93,0.00021499,2]
[346240017,1734797452418,-514.93,0.00021499,2]
[346240018,1734797452428,-514.93,0.00021499,2]
[346240019,1734797452437,-514.97,0.00021499,2]
[346240020,1734797452446,-500.0,0.00021499,2]
[346240021,1734797452457,-7500.0,0.00021499,2]
[346240022,1734797452468,-7500.0,0.00021499,2]
[346240023,1734797452478,-7500.0,0.00021499,2]
[346240024,1734797452487,-7500.0,0.00021499,2]
[346240025,1734797452497,-5509.07377097,0.00021499,2]
[346240026,1734797452507,-812420.91528554,0.000215,3]
[346240027,1734797452916,-337.62078117,0.000215,3]
[346240028,1734797452927,-360.04704331,0.000215,3]
[346240029,1734797452937,-2643.39459498,0.000215,3]
[346240030,1734797452963,-1190.58554,0.000215,3]
[346240031,1734797452975,-334.0,0.000215,3]
[346240032,1734797452998,-13078.87965426,0.000215,3]
[346240033,1734797453009,-1470.58471342,0.000215,3]
[346240034,1734797453020,-391.48500866,0.000215,3]